bitfinex/quotes_SOLUSD_20240718
["timestamp","ask_amount","ask_price","bid_price","bid_amount"]
[1721262937803,0.298489,157.46,157.43,6.352]
[1721262937997,0.298489,157.46,157.43,15.8798]
[1721262938304,0.298489,157.46,157.43,22.2317]
[1721262938493,0.298489,157.46,157.44,7.62162582]
[1721262938876,0.298489,157.46,157.45,6.3512]
[1721262939583,0.298489,157.46,157.44,1.27022582]
[1721262939782,0.298489,157.46,157.43,22.2314]
[1721262940007,0.298489,157.46,157.44,1.27014576]
[1721262940510,0.298489,157.46,157.43,22.2314]
[1721262940804,0.298489,157.46,157.41,6.3525]
[1721262940986,0.298489,157.46,157.42,6.3523]
[1721262941190,0.298489,157.46,157.42,15.8802]
[1721262941698,0.298489,157.46,157.44,6.3513]
[1721262942081,0.298489,157.46,157.42,15.8802]
[1721262942498,0.298489,157.46,157.42,22.2323]
[1721262942804,0.298489,157.46,157.43,7.62217537]
[1721262943180,0.298489,157.46,157.43,1.270256]
[1721262943410,0.298489,157.46,157.42,22.2324]
[1721262945817,0.298489,157.46,157.4,6.3531]
[1721262945818,6.3512,157.45,157.4,6.3531]
[1721262946008,0.298489,157.46,157.39,15.8839]
[1721262946009,6.3516,157.44,157.39,22.2374]
[1721262947484,15.887389,157.46,157.4,6.3531]
[1721262947679,22.238189,157.46,157.4,6.3531]
[1721262948091,22.238189,157.46,157.4,7.62362934]
[1721262948306,15.887389,157.46,157.39,15.8839]
[1721262948512,15.887389,157.46,157.41,6.3527]
[1721262948817,22.238189,157.46,157.41,6.3527]
[1721262949214,6.3513,157.45,157.4,6.3531]
[1721262951002,6.3513,157.45,157.39,22.2374]
[1721262951213,6.3513,157.45,157.4,7.6237066]
[1721262952193,6.3513,157.45,157.4,6.3532]
[1721262952794,22.238189,157.46,157.41,6.3527]
[1721262953514,6.3512,157.45,157.4,1.2704492]
[1721262953821,15.887389,157.46,157.41,6.3525]
[1721262954021,6.3512,157.45,157.4,7.6235492]
[1721262954322,0.298489,157.46,157.4,1.2704492]
[1721262954495,0.298489,157.46,157.43,15.8791]
[1721262954701,0.298489,157.46,157.41,1.27021789]
[1721262954897,0.298489,157.46,157.42,6.3524]
[1721262955099,0.298489,157.46,157.43,1.27021836]
[1721262957129,0.298489,157.46,157.41,6.3527]
[1721262957314,6.649289,157.46,157.41,6.3527]
[1721262957515,6.649289,157.46,157.42,1.27023998]
[1721262958531,0.298489,157.46,157.43,11.27023852]
[1721262958833,0.298489,157.46,157.45,16.3512]
[1721262959005,0.298489,157.46,157.45,17.62103515]
[1721262959714,0.298489,157.46,157.45,16.3512]
[1721262960130,0.298489,157.46,157.45,6.3512]
[1721262960429,0.298489,157.46,157.45,1.26998342]
[1721262961229,0.298489,157.46,157.45,7.62118342]
[1721262961533,0.298489,157.46,157.44,15.8783]
[1721262961725,0.298489,157.46,157.44,17.14843048]
[1721262961924,0.298489,157.46,157.45,6.3512]
[1721262962131,0.298489,157.46,157.45,62.6209924]
[1721262962509,0.298489,157.46,157.45,78.9722924]
[1721262962708,0.298489,157.46,157.45,99.1422924]
[1721262963446,0.298489,157.46,157.45,77.7025]
[1721262963642,0.298489,157.46,157.45,97.5325]
[1721262963838,0.298489,157.46,157.45,98.80224529]
[1721262964164,0.298489,157.46,157.45,77.8725]
[1721262964328,0.298489,157.46,157.44,15.8783]
[1721262964534,0.298489,157.46,157.43,6.3519]
[1721262964922,0.298489,157.46,157.44,1.27002465]
[1721262965121,0.298489,157.46,157.42,15.8803]
[1721262965529,0.298489,157.46,157.42,22.2326]
[1721262966052,0.298489,157.46,157.38,25.8842]
[1721262966358,6.649689,157.46,157.4,6.353]
[1721262967638,0.298489,157.46,157.41,7.62320083]
[1721262967843,0.298489,157.46,157.43,6.352]
[1721262968045,0.298489,157.46,157.44,6.3512]
[1721262968237,0.298489,157.46,157.44,7.62127902]
[1721262968645,0.298489,157.46,157.45,6.3512]
[1721262969038,0.298489,157.46,157.45,7.62110439]
[1721262969653,0.298489,157.46,157.45,1.26997677]
[1721262970569,0.298489,157.46,157.44,15.8789]
[1721262970778,0.298489,157.46,157.4,25.8824]
[1721262970983,0.298489,157.46,157.4,15.8824]
[1721262971266,0.298489,157.46,157.41,7.62294731]
[1721262971441,0.298489,157.46,157.41,17.62294731]
[1721262971643,0.298489,157.46,157.42,6.3523]
[1721262971848,0.298489,157.46,157.43,1.27022101]
[1721262972046,0.298489,157.46,157.41,6.3528]
[1721262972251,6.649589,157.46,157.4,22.2355]
[1721262972570,6.649589,157.46,157.41,1.27040017]
[1721262972771,6.649589,157.46,157.4,22.2355]
[1721262972981,6.649589,157.46,157.41,1.27040205]
[1721262973855,0.298489,157.46,157.41,1.27040205]
[1721262974052,0.298489,157.46,157.41,7.62280205]
[1721262974559,0.298489,157.46,157.43,6.3518]
[1721262974774,0.298489,157.46,157.42,7.62248562]
[1721262974952,0.298489,157.46,157.42,1.27018562]
[1721262975270,0.298489,157.46,157.43,1.27030337]
[1721262975457,0.298489,157.46,157.42,1.27026689]
[1721262975643,0.298489,157.46,157.42,7.6225626]
[1721262975843,0.298489,157.46,157.4,15.8824]
[1721262975844,0.298489,157.46,157.43,1.27030156]
[1721262976040,0.298489,157.46,157.43,7.62210156]
[1721262976774,6.649289,157.46,157.42,1.27019581]
[1721262976968,6.649289,157.46,157.43,1.27020062]
[1721262977146,0.298489,157.46,157.43,1.27020062]
[1721262977347,0.298489,157.46,157.43,7.62200062]
[1721262977659,0.298489,157.46,157.43,1.27020062]
[1721262979472,0.298489,157.46,157.39,10.0]
[1721262979653,6.649689,157.46,157.4,7.62320427]
[1721262980063,6.3512,157.45,157.4,7.62320427]
[1721262980773,6.649389,157.46,157.41,6.3526]
[1721262980959,0.298489,157.46,157.42,7.62249111]
[1721262981150,0.298489,157.46,157.43,6.3519]
[1721262981350,0.298489,157.46,157.44,1.27007366]
[1721262981566,0.298489,157.46,157.45,6.3512]
[1721262982568,0.298489,157.46,157.45,16.3512]
[1721262982753,0.298489,157.46,157.45,62.62097126]
[1721262982956,0.298489,157.46,157.45,61.3512]
[1721262984346,0.298489,157.46,157.45,16.3512]
[1721262985856,0.298489,157.46,157.45,61.3512]
[1721262988161,0.298489,157.46,157.45,81.6912]
[1721262993077,0.298489,157.46,157.45,82.96068702]
[1721262993293,0.298489,157.46,157.45,81.6912]
[1721262994375,0.298489,157.46,157.45,97.1812]
[1721262995898,8.9e-05,157.46,157.45,97.1812]
[1721263000088,8.9e-05,157.46,157.45,98.45064482]
[1721263000903,8.9e-05,157.46,157.45,97.1812]
[1721263001284,8.9e-05,157.46,157.45,116.2812]
[1721263001495,8.9e-05,157.46,157.45,81.6912]
[1721263002193,8.9e-05,157.46,157.45,97.1812]
[1721263004593,8.9e-05,157.46,157.45,52.0112]
[1721263005402,8.9e-05,157.46,157.45,32.0112]
[1721263005595,8.9e-05,157.46,157.45,31.8412]
[1721263005801,8.9e-05,157.46,157.45,33.11096481]
[1721263006390,8.9e-05,157.46,157.45,31.8412]
[1721263007010,8.9e-05,157.46,157.45,76.8412]
[1721263007203,8.9e-05,157.46,157.45,96.8412]
[1721263007586,8.9e-05,157.46,157.45,98.11091622]
[1721263007785,8.9e-05,157.46,157.45,98.11092419]
[1721263008026,8.9e-05,157.46,157.45,98.45092419]
[1721263008324,8.9e-05,157.46,157.45,97.1812]
[1721263008827,8.9e-05,157.46,157.45,98.45067553]
[1721263009011,8.9e-05,157.46,157.45,97.1812]
[1721263009205,8.9e-05,157.46,157.45,116.2812]
[1721263009719,8.9e-05,157.46,157.45,133.17098478]
[1721263010411,15.5948,157.57,157.56,6.3467]
[1721263010816,15.5948,157.57,157.55,22.2146]
[1721263011418,15.5948,157.57,157.52,15.8705]
[1721263011622,15.5948,157.57,157.49,25.8738]
[1721263011832,6.2504,157.56,157.5,1.26959885]
[1721263012016,6.2504,157.56,157.51,6.3484]
[1721263012212,6.2504,157.56,157.52,15.8706]
[1721263012530,6.2504,157.56,157.55,6.3471]
[1721263012730,6.2504,157.56,157.54,15.868]
[1721263012731,6.2504,157.56,157.54,22.2155]
[1721263012896,6.2504,157.56,157.54,15.868]
[1721263014307,6.2504,157.56,157.54,22.2154]
[1721263014504,6.2504,157.56,157.55,6.3471]
[1721263014911,6.2504,157.56,157.54,22.2155]
[1721263016315,6.2504,157.56,157.55,6.3471]
[1721263017297,6.2504,157.56,157.54,15.868]
[1721263018026,6.2504,157.56,157.54,22.2155]
[1721263018335,6.2504,157.56,157.54,15.868]
[1721263018538,6.2504,157.56,157.52,6.3483]
[1721263019800,6.2504,157.56,157.51,25.8717]
[1721263019801,6.2504,157.56,157.53,6.3478]
[1721263021512,6.2504,157.56,157.53,15.8693]
[1721263022014,6.2504,157.56,157.53,22.2169]
[1721263022721,6.2504,157.56,157.54,6.3475]
[1721263023031,6.2504,157.56,157.53,15.8693]
[1721263023934,6.2504,157.56,157.51,6.3487]
[1721263024119,6.2504,157.56,157.5,15.8726]
[1721263024523,12.5972,157.56,157.5,15.8726]
[1721263024745,12.5972,157.56,157.5,22.2216]
[1721263024950,12.5972,157.56,157.47,25.8759]
[1721263024951,6.2504,157.56,157.47,25.8759]
[1721263025439,12.5974,157.56,157.5,6.3491]
[1721263025636,6.2504,157.56,157.52,6.3481]
[1721263025934,6.2504,157.56,157.51,22.2201]
[1721263026139,6.2504,157.56,157.52,6.3482]
[1721263026347,6.2504,157.56,157.51,22.2201]
[1721263027125,6.2504,157.56,157.52,7.61783384]
[1721263027341,6.2504,157.56,157.52,1.26953384]
[1721263027942,6.2504,157.56,157.51,15.8714]
[1721263028234,6.2504,157.56,157.52,1.26950058]
[1721263028435,6.2504,157.56,157.53,15.869]
[1721263029244,6.2504,157.56,157.53,22.2166]
[1721263030846,15.5948,157.57,157.53,22.2166]
[1721263031729,15.5948,157.57,157.5,15.8729]
[1721263031932,15.5948,157.57,157.5,22.2217]
[1721263031933,6.3469,157.56,157.5,22.2217]
[1721263032442,6.3469,157.56,157.51,6.3486]
[1721263033135,21.9411,157.57,157.52,6.3483]
[1721263033335,15.5948,157.57,157.52,17.13970914]
[1721263033859,15.5948,157.57,157.52,1.26950914]
[1721263034041,6.347,157.56,157.5,6.349]
[1721263034654,6.347,157.56,157.51,16.3486]
[1721263034837,6.347,157.56,157.51,6.3486]
[1721263035220,6.347,157.56,157.51,16.3486]
[1721263035426,21.9412,157.57,157.52,6.3483]
[1721263035726,6.3467,157.56,157.51,6.3487]
[1721263036134,6.3472,157.55,157.5,6.3491]
[1721263037459,6.3484,157.52,157.47,16.3502]
[1721263037630,12.4755,157.53,157.48,6.35]
[1721263037961,6.3485,157.52,157.47,6.3503]
[1721263038158,22.1665,157.51,157.46,15.8765]
[1721263038347,22.1665,157.51,157.47,7.61995181]
[1721263038348,15.8174,157.51,157.47,7.61995181]
[1721263038854,15.8174,157.51,157.48,6.3499]
[1721263039239,15.8174,157.51,157.49,7.61934114]
[1721263039434,15.8174,157.51,157.49,6.3495]
[1721263040279,15.8174,157.51,157.47,10.0]
[1721263040280,15.8174,157.51,157.47,16.35]
[1721263040634,15.8174,157.51,157.47,10.0]
[1721263040849,15.8174,157.51,157.46,15.8765]
[1721263041252,15.8174,157.51,157.42,15.8806]
[1721263041452,6.3507,157.47,157.42,22.2329]
[1721263041628,15.8174,157.51,157.43,6.3518]
[1721263042038,6.3503,157.48,157.42,22.2329]
[1721263042249,6.3504,157.47,157.42,22.2329]
[1721263042640,6.3508,157.46,157.4,6.3531]
[1721263042841,6.3508,157.46,157.41,6.3526]
[1721263043753,6.3505,157.47,157.42,6.3523]
[1721263044340,6.3505,157.47,157.41,6.3527]
[1721263044537,6.3506,157.47,157.42,6.3523]
[1721263044741,22.7276,157.45,157.39,6.3536]
[1721263045158,16.3764,157.45,157.39,6.3536]
[1721263045365,6.3516,157.44,157.38,23.50943421]
[1721263045654,6.3516,157.44,157.39,6.3534]
[1721263045965,22.7276,157.45,157.39,6.3534]
[1721263046459,6.3517,157.44,157.38,22.2389]
[1721263047159,6.3517,157.44,157.39,6.3535]
[1721263047857,16.3764,157.45,157.38,22.2388]
[1721263047858,6.352,157.43,157.38,22.2388]
[1721263048435,6.352,157.43,157.38,15.8849]
[1721263049280,6.3532,157.41,157.35,15.8878]
[1721263049437,6.3524,157.42,157.36,6.3546]
[1721263049854,6.3524,157.42,157.37,6.3542]
[1721263050065,6.3184,157.44,157.38,7.62441701]
[1721263050661,12.67,157.44,157.38,7.62441701]
[1721263050946,12.67,157.44,157.38,6.3537]
[1721263051549,6.352,157.43,157.38,6.3537]
[1721263051951,6.352,157.43,157.37,22.2396]
[1721263052553,6.3526,157.42,157.37,15.8853]
[1721263052863,6.353,157.41,157.36,6.3548]
[1721263053073,6.353,157.41,157.34,25.8888]
[1721263053074,6.3532,157.4,157.35,6.3551]
[1721263053568,6.3529,157.41,157.35,7.62596621]
[1721263053740,6.3529,157.41,157.36,6.3546]
[1721263053942,6.3184,157.44,157.36,6.3546]
[1721263053943,12.6701,157.44,157.38,6.3539]
[1721263054150,6.3184,157.44,157.38,6.3539]
[1721263055342,6.352,157.43,157.38,6.3539]
[1721263055563,6.3184,157.44,157.39,7.6238389]
[1721263055743,6.3184,157.44,157.4,1.27045218]
[1721263055946,6.3184,157.44,157.38,25.8842]
[1721263056150,12.6701,157.44,157.39,1.27052767]
[1721263056347,12.6701,157.44,157.38,25.8842]
[1721263056567,6.3521,157.43,157.38,22.2381]
[1721263057461,6.3184,157.44,157.39,1.27054401]
[1721263057665,12.6703,157.44,157.39,1.27054401]
[1721263057855,12.6703,157.44,157.38,22.2381]
[1721263058259,6.352,157.43,157.38,22.2381]
[1721263058747,12.67,157.44,157.38,22.2381]
[1721263058947,6.3511,157.46,157.4,6.3531]
[1721263059368,6.3513,157.45,157.4,6.3531]
[1721263059868,21.6602,157.48,157.38,15.8842]
[1721263059869,6.3516,157.44,157.38,15.8842]
[1721263060050,6.3512,157.45,157.39,6.3532]
[1721263060366,6.3517,157.44,157.38,22.2381]
[1721263060559,6.3517,157.44,157.38,23.50859518]
[1721263060764,6.3517,157.44,157.38,22.2381]
[1721263060954,6.3522,157.43,157.38,23.50858903]
[1721263061273,6.3517,157.44,157.38,23.50858903]
[1721263062946,6.3525,157.42,157.36,6.3545]
[1721263063162,6.3525,157.42,157.37,7.62477062]
[1721263063558,6.352,157.43,157.38,6.3539]
[1721263063774,6.352,157.43,157.37,7.62497062]
[1721263064267,6.352,157.43,157.38,6.3539]
[1721263066767,6.352,157.43,157.38,7.62448207]
[1721263069460,6.352,157.43,157.38,6.3539]
[1721263071490,6.3525,157.42,157.37,15.8855]
[1721263071975,6.3525,157.42,157.37,22.2397]
[1721263072290,6.352,157.43,157.38,6.354]
[1721263072991,6.3512,157.46,157.4,6.3528]
[1721263073289,6.3508,157.46,157.41,6.3524]
[1721263073582,6.3504,157.47,157.42,7.62250377]
[1721263073880,28.0103,157.48,157.42,6.3521]
[1721263074259,6.3505,157.47,157.41,23.50440377]
[1721263074584,6.3508,157.46,157.41,23.50440377]
[1721263076084,22.2546,157.52,157.43,15.879]
[1721263076387,6.3496,157.49,157.44,1.2701373]
[1721263077088,6.3496,157.49,157.44,23.16172122]
[1721263077589,6.3496,157.49,157.45,17.82127767]
[1721263077762,6.3496,157.49,157.44,7.6216373]
[1721263078571,6.3496,157.49,157.44,6.3515]
[1721263078772,6.3496,157.49,157.43,22.2309]
[1721263079479,6.3496,157.49,157.44,1.27009576]
[1721263079972,6.3492,157.5,157.44,7.62159576]
[1721263080169,6.3492,157.5,157.44,17.62159576]
[1721263081163,6.3492,157.5,157.45,6.3511]
[1721263081480,6.3488,157.51,157.46,1.26993345]
[1721263081690,6.3484,157.52,157.46,11.26993345]
[1721263082003,6.3484,157.52,157.46,10.0]
[1721263082289,6.3488,157.51,157.46,10.0]
[1721263082995,6.3488,157.51,157.47,1.26979718]
[1721263083362,6.3484,157.52,157.47,1.26979718]
[1721263084205,6.3478,157.54,157.47,1.26979718]
[1721263084375,6.348,157.53,157.48,6.3498]
[1721263084578,6.348,157.53,157.49,1.26973449]
[1721263084881,6.3476,157.54,157.49,7.61913449]
[1721263087378,6.3476,157.54,157.49,1.26973449]
[1721263087581,6.3484,157.52,157.48,10.0]
[1721263087970,6.348,157.53,157.48,16.3498]
[1721263089176,6.3485,157.52,157.47,37.5194]
[1721263089381,6.3485,157.52,157.48,1.26977049]
[1721263089702,6.348,157.53,157.49,1.26974284]
[1721263089875,6.348,157.53,157.48,16.3499]
[1721263090410,6.62982401,157.59,157.5,10.0]
[1721263090574,175.82054963,157.6,157.54,6.3475]
[1721263090768,6.346,157.58,157.53,1.26945392]
[1721263091292,6.346,157.58,157.53,7.61735392]
[1721263091490,6.3456,157.59,157.53,7.61735392]
[1721263096291,6.346,157.58,157.52,25.8701]
[1721263096499,6.346,157.58,157.53,1.26933614]
[1721263097612,6.346,157.58,157.53,6.3479]
[1721263097780,6.346,157.58,157.54,1.26933654]
[1721263097981,154.36344963,157.6,157.49,25.8739]
[1721263098187,154.36344963,157.6,157.5,21.26955934]
[1721263098188,45.0,157.59,157.5,21.26955934]
[1721263098394,154.36344963,157.6,157.5,21.26955934]
[1721263098594,154.36344963,157.6,157.5,20.0]
[1721263098898,154.36344963,157.6,157.52,15.8709]
[1721263099109,6.3463,157.58,157.53,1.26948823]
[1721263099598,154.36344963,157.6,157.54,7.61670515]
[1721263099809,154.36344963,157.6,157.54,6.3474]
[1721263100792,154.36344963,157.6,157.56,6.3466]
[1721263100989,154.36344963,157.6,157.57,6.3463]
[1721263101195,154.36344963,157.6,157.55,17.13696122]
[1721263101501,154.36344963,157.6,157.56,6.3467]
[1721263101704,154.36344963,157.6,157.57,7.6154665]
[1721263102001,154.36344963,157.6,157.53,16.3447]
[1721263102204,6.3465,157.57,157.53,17.6140729]
[1721263102383,6.3459,157.59,157.53,16.3447]
[1721263102588,154.36344963,157.6,157.54,1.269443]
[1721263102793,154.36344963,157.6,157.53,17.614143]
[1721263102794,6.3459,157.59,157.53,17.614143]
[1721263103193,154.36344963,157.6,157.54,6.3474]
[1721263103395,154.36344963,157.6,157.53,16.3447]
[1721263103603,6.346,157.58,157.53,23.96186851]
[1721263103886,160.70894963,157.6,157.54,6.3473]
[1721263104096,160.70894963,157.6,157.55,1.26926094]
[1721263104393,160.70894963,157.6,157.54,6.3473]
[1721263104707,160.70894963,157.6,157.54,7.61660761]
[1721263105107,160.70894963,157.6,157.55,7.61640759]
[1721263105108,154.36344963,157.6,157.55,7.61640759]
[1721263105292,154.36344963,157.6,157.56,16.3465]
[1721263105491,154.36344963,157.6,157.57,7.6153477]
[1721263105705,154.36344963,157.6,157.57,22.2119]
[1721263105890,154.36344963,157.6,157.57,15.8656]
[1721263106286,154.36344963,157.6,157.57,17.13470536]
[1721263106892,154.36344963,157.6,157.57,23.48100536]
[1721263107105,154.36344963,157.6,157.58,1.26904992]
[1721263107711,154.36344963,157.6,157.55,15.49]
[1721263107712,154.36344963,157.6,157.55,21.8368]
[1721263107896,154.36344963,157.6,157.56,7.6157934]
[1721263108211,154.36344963,157.6,157.56,16.3467]
[1721263108512,154.36344963,157.6,157.54,10.0]
[1721263108710,154.36344963,157.6,157.57,6.3463]
[1721263108893,154.36344963,157.6,157.57,7.61537315]
[1721263109088,154.36344963,157.6,157.57,6.3462]
[1721263109295,154.36344963,157.6,157.57,1.26901439]
[1721263109491,154.36344963,157.6,157.56,25.8661]
[1721263109827,154.36344963,157.6,157.57,1.26904529]
[1721263110004,154.36344963,157.6,157.57,7.61534529]
[1721263110306,154.36344963,157.6,157.57,6.3463]
[1721263111009,154.36344963,157.6,157.58,16.3459]
[1721263111227,154.36344963,157.6,157.58,11.2689626]
[1721263111713,154.36344963,157.6,157.58,10.0]
[1721263112105,154.36344963,157.6,157.57,6.3463]
[1721263112397,154.36344963,157.6,157.58,11.26896331]
[1721263112611,154.36344963,157.6,157.58,10.0]
[1721263112791,154.36344963,157.6,157.59,1.26896353]
[1721263113310,80.63704963,157.6,157.59,128.1084]
[1721263113491,80.63704963,157.6,157.59,144.46429589]
[1721263114112,80.63704963,157.6,157.59,212.78829589]
[1721263114325,285.1883,157.79,157.59,212.78829589]
[1721263114326,15.8411,157.82,157.71,15.8513]
[1721263114533,258.45729453,157.92,157.6,18.42039783]
[1721263114534,8.9e-05,157.77,157.76,29.1]
[1721263114835,6.3341,157.88,157.79,10.0]
[1721263115000,6.3343,157.87,157.77,10.0]
[1721263115322,21.7719,157.9,157.82,31.3306]
[1721263115628,21.7719,157.9,157.8,21.827]
[1721263115928,6.3348,157.86,157.8,15.49]
[1721263116221,37.6051,157.9,157.75,10.0]
[1721263116526,30.87,157.89,157.79,6.3374]
[1721263116719,6.3352,157.85,157.79,6.3374]
[1721263117124,30.87,157.89,157.77,25.8449]
[1721263117428,30.87,157.89,157.8,6.3369]
[1721263117795,6.3347,157.86,157.8,6.3369]
[1721263118227,0.798489,157.93,157.84,10.0]
[1721263118519,0.798489,157.93,157.86,15.836]
[1721263118728,7.130389,157.93,157.87,6.3342]
[1721263119309,7.130389,157.93,157.86,22.1707]
[1721263120099,7.130389,157.93,157.87,6.3341]
[1721263120315,0.798489,157.93,157.88,7.60052681]
[1721263120500,0.798489,157.93,157.87,6.3343]
[1721263120714,7.130389,157.93,157.87,1.2666072]
[1721263120900,6.3323,157.92,157.86,15.836]
[1721263122026,6.3323,157.92,157.86,22.1705]
[1721263122326,6.3323,157.92,157.87,1.26663982]
[1721263122526,6.3328,157.91,157.84,6.3351]
[1721263122730,6.3331,157.9,157.84,6.3351]
[1721263122925,6.3327,157.91,157.85,6.335]
[1721263123709,0.798489,157.93,157.87,6.3341]
[1721263124207,0.798489,157.93,157.86,22.1711]
[1721263124434,0.798489,157.93,157.9,10.0]
[1721263124608,0.798489,157.93,157.88,10.0]
[1721263124808,0.798489,157.93,157.91,15.8309]
[1721263125011,0.798489,157.93,157.91,22.1635]
[1721263125326,0.798489,157.93,157.92,6.3323]
[1721263125530,0.798489,157.93,157.91,22.1635]
[1721263126211,0.798489,157.93,157.92,6.3323]
[1721263126931,0.798489,157.93,157.89,1.26636966]
[1721263127101,0.798489,157.93,157.9,1.26645669]
[1721263127305,0.798489,157.93,157.89,6.3334]
[1721263127501,0.798489,157.93,157.9,6.333]
[1721263127916,0.798489,157.93,157.89,7.59983538]
[1721263128122,0.798489,157.93,157.9,6.333]
[1721263129137,0.798489,157.93,157.88,22.1683]
[1721263129442,0.798489,157.93,157.89,7.60006099]
[1721263129935,6.3323,157.92,157.86,6.3346]
[1721263130136,0.798489,157.93,157.88,6.3338]
[1721263130329,6.3323,157.92,157.87,22.1699]
[1721263130530,7.130389,157.93,157.87,22.1699]
[1721263130713,7.130389,157.93,157.88,6.3339]
[1721263130911,8.9e-05,157.93,157.91,15.831]
[1721263131124,0.798489,158.08,157.9,50.6945]
[1721263131125,0.798489,158.08,158.07,6.3263]
[1721263131330,0.798489,158.08,158.03,15.8192]
[1721263131725,30.87,158.06,158.0,6.329]
[1721263131940,30.87,158.06,158.01,44.96648364]
[1721263132139,6.3275,158.04,158.01,44.96648364]
[1721263132326,6.3267,158.06,158.01,44.96648364]
[1721263132914,6.3263,158.07,158.01,51.29478364]
[1721263133430,6.4762,158.05,158.01,44.96648364]
[1721263133623,6.3283,158.02,158.01,44.96648364]
[1721263134231,12.8033,158.05,158.01,44.96648364]
[1721263134540,6.4762,158.05,157.9,31.6645]
[1721263134725,6.4762,158.05,157.89,15.833]
[1721263134726,6.3305,157.97,157.91,6.3325]
[1721263134929,30.87,157.96,157.92,6.3323]
[1721263135324,30.87,157.96,157.9,6.3327]
[1721263135532,6.3303,157.97,157.91,6.3324]
[1721263136008,6.3298,157.99,157.92,6.3322]
[1721263136214,6.3288,158.01,157.92,15.8307]
[1721263136411,0.17,158.02,157.86,10.0]
[1721263136621,6.3303,157.97,157.91,6.3327]
[1721263137039,6.3307,157.96,157.9,6.3331]
[1721263137346,6.3311,157.95,157.88,22.168]
[1721263137645,0.17,157.96,157.88,22.168]
[1721263137646,6.3309,157.96,157.89,6.3332]
[1721263138146,6.3309,157.96,157.9,6.3329]
[1721263138841,15.8221,158.01,157.88,15.8345]
[1721263139057,6.3311,157.95,157.88,15.8345]
[1721263139226,6.3307,157.96,157.9,6.3331]
[1721263139857,6.3311,157.95,157.89,6.3334]
[1721263140151,15.8221,158.01,157.91,6.3325]
[1721263140349,30.87,157.97,157.91,6.3325]
[1721263140520,37.2006,157.97,157.91,6.3325]
[1721263141130,6.3308,157.96,157.91,6.3325]
[1721263141855,30.87,157.97,157.92,6.3321]
[1721263142535,37.2004,157.97,157.92,6.3321]
[1721263142732,37.2004,157.97,157.91,22.1642]
[1721263143250,6.3309,157.96,157.91,22.1642]
[1721263143454,6.3309,157.96,157.91,15.8315]
[1721263143751,30.87,157.97,157.89,6.3334]
[1721263143950,6.3322,157.93,157.88,15.8347]
[1721263144440,6.3323,157.92,157.87,6.3343]
[1721263144821,6.3323,157.92,157.86,6.3346]
[1721263145027,6.2697,157.95,157.85,22.1724]
[1721263145251,6.3331,157.9,157.85,22.1724]
[1721263145625,6.3336,157.89,157.84,6.3354]
[1721263146047,6.3331,157.9,157.84,6.3354]
[1721263146250,15.8288,157.94,157.84,6.3354]
[1721263146251,6.3336,157.89,157.84,6.3354]
[1721263146886,6.3343,157.87,157.82,22.1764]
[1721263147425,30.87,157.89,157.79,15.8435]
[1721263147631,30.87,157.89,157.8,6.3367]
[1721263147632,6.3348,157.86,157.8,6.3367]
[1721263148036,6.3352,157.85,157.8,6.3367]
[1721263148244,6.3352,157.85,157.79,22.1809]
[1721263148554,15.8346,157.89,157.79,15.8435]
[1721263148734,6.3362,157.83,157.77,6.3379]
[1721263148941,6.3364,157.82,157.77,6.3379]
[1721263149144,6.5879,157.85,157.78,1.26741268]
[1721263149661,6.5879,157.85,157.76,22.1852]
[1721263150048,4.5879,157.85,157.76,22.1852]
[1721263150358,4.5879,157.85,157.77,6.3381]
[1721263150359,6.3364,157.82,157.77,6.3381]
[1721263150673,6.3364,157.82,157.76,22.1852]
[1721263151037,6.3369,157.81,157.76,22.1852]
[1721263151237,6.3363,157.82,157.76,22.1852]